bitfinex/quotes_ETHUSD_20251011
["timestamp","ask_amount","ask_price","bid_price","bid_amount"]
[1760212930541,2.65051712,3772.9,3770.6,2.65206317]
[1760212930542,2.87996783,3771.8,3770.6,2.65206317]
[1760212930847,0.3414,3771.7,3770.5,2.65216571]
[1760212931051,2.65173734,3771.2,3770.0,2.6524574]
[1760212931271,2.65179818,3771.1,3770.0,2.6524574]
[1760212931424,0.3414,3771.1,3769.5,0.4498]
[1760212931624,0.3414,3771.1,3769.6,0.02652801]
[1760212931932,0.6336,3770.8,3769.7,2.65273098]
[1760212932249,2.99315379,3771.1,3769.5,0.4498]
[1760212932250,0.6336,3771.0,3769.5,0.4498]
[1760212932562,0.6336,3771.0,3769.6,0.02652801]
[1760212932767,0.3414,3771.7,3769.7,0.4498]
[1760212932954,0.3403,3772.2,3769.9,2.65259025]
[1760212933124,0.3403,3772.2,3770.0,0.4498]
[1760212933330,2.65145943,3771.6,3770.6,2.65203158]
[1760212933657,1.92,3772.6,3770.2,2.65237918]
[1760212933837,2.65042623,3773.0,3770.1,0.2163]
[1760212933838,2.6516031,3771.4,3770.1,0.2163]
[1760212934159,0.6336,3771.6,3770.2,0.4498]
[1760212934326,0.6336,3771.5,3770.3,0.02652308]
[1760212934533,0.6336,3771.5,3770.3,2.65227442]
[1760212934839,2.6517736,3771.1,3770.3,2.65227442]
[1760212935041,2.6517736,3771.1,3770.2,2.65236579]
[1760212935354,0.2304,3771.9,3770.3,0.02652308]
[1760212935553,0.6336,3771.9,3770.9,2.65184009]
[1760212935867,0.6336,3771.4,3770.4,2.65220667]
[1760212936067,0.6336,3771.4,3770.5,2.652167]
[1760212936068,3.28516033,3771.4,3770.5,2.652167]
[1760212936232,0.3397,3771.9,3770.1,0.4498]
[1760212936566,0.6336,3771.6,3770.2,2.65237918]
[1760212936763,0.6336,3771.6,3770.8,2.65194622]
[1760212936976,3.28499753,3771.6,3770.7,2.65201779]
[1760212937341,0.6336,3771.4,3770.6,2.65202836]
[1760212937643,3.28514548,3771.4,3770.6,2.6520978]
[1760212937838,3.28514548,3771.4,3770.2,1.92]
[1760212937839,0.6336,3771.4,3769.1,2.65313573]
[1760212938040,0.3397,3771.6,3769.5,0.02652871]
[1760212938240,3.28513523,3771.5,3770.5,2.65216716]
[1760212938430,0.6336,3771.7,3770.8,2.65189643]
[1760212938630,2.65148459,3771.5,3770.6,2.65205029]
[1760212938843,2.65153523,3771.4,3770.4,0.4498]
[1760212939043,2.6520244,3770.8,3769.9,2.65255416]
[1760212939270,0.6336,3771.2,3769.7,0.4498]
[1760212939465,2.65205759,3770.7,3769.3,0.4498]
[1760212939770,0.9733,3771.1,3769.3,0.4498]
[1760212939771,2.65221221,3770.5,3769.7,2.65271959]
[1760212939966,2.65221221,3770.5,3769.7,2.65270637]
[1760212940456,0.132,3770.2,3769.9,2.65253507]
[1760212940848,0.132,3770.2,3769.8,2.67918079]
[1760212941250,0.132,3770.2,3770.0,2.65245426]
[1760212941452,0.132,3770.2,3769.8,0.0265266]
[1760212941453,0.6336,3770.1,3769.8,0.0265266]
[1760212941662,0.6336,3770.2,3769.4,2.65288828]
[1760212941968,2.65232626,3770.3,3769.2,3.10287672]
[1760212941969,3.28591616,3770.3,3769.5,2.67938286]
[1760212942176,0.3397,3770.9,3769.5,0.02652871]
[1760212942177,2.65195714,3770.8,3769.5,0.02652871]
[1760212942473,18.48860943,3773.5,3769.8,1.92]
[1760212942474,0.5701,3771.9,3769.8,1.92]
[1760212942768,0.3397,3771.9,3770.9,2.65187776]
[1760212942969,2.6513501,3771.7,3770.9,2.65187776]
[1760212943175,2.65140904,3771.6,3770.9,2.65187776]
[1760212943339,2.99089838,3771.9,3770.7,1.94652027]
[1760212943340,2.65147459,3771.5,3770.7,1.94652027]
[1760212943541,0.001,3770.9,3770.3,1.92]
[1760212943744,0.001,3770.9,3770.1,1.92]
[1760212943959,2.65195714,3770.8,3769.8,2.65260842]
[1760212944278,0.001,3770.9,3769.3,0.4498]
[1760212944439,0.001,3770.9,3770.4,2.65217888]
[1760212944835,0.001,3770.9,3770.2,2.65236918]
[1760212944836,0.6336,3770.7,3769.6,1.92]
[1760212945071,2.99165714,3770.8,3769.8,2.65260318]
[1760212945072,0.6336,3770.5,3769.8,2.65260318]
[1760212945278,0.6336,3770.5,3769.7,1.92]
[1760212945443,0.6336,3770.6,3769.8,2.65263838]
[1760212945644,0.6336,3770.6,3769.8,2.65259628]
[1760212945868,0.6336,3770.5,3769.8,2.65259628]
[1760212946064,0.6346,3770.9,3770.0,2.65251989]
[1760212946272,0.6346,3770.9,3770.5,2.6521617]
[1760212946273,0.001,3770.9,3770.5,2.6521617]
[1760212946436,0.001,3770.9,3769.8,0.72253471]
[1760212946643,0.6336,3770.5,3769.7,2.65268036]
[1760212946938,0.6336,3770.5,3769.8,2.65265369]
[1760212947144,0.6336,3770.1,3769.1,0.4498]
[1760212947335,2.65207122,3770.7,3769.1,0.4498]
[1760212947538,0.001,3770.9,3769.2,1.92]
[1760212947770,0.001,3770.9,3769.3,0.42898]
[1760212947979,0.001,3770.9,3768.3,0.2163]
[1760212947980,0.001,3770.9,3770.6,2.65204893]
[1760212948148,0.001,3770.9,3769.6,1.92]
[1760212948149,0.001,3770.9,3770.7,2.6520115]
[1760212948352,0.001,3770.9,3770.8,2.65195714]
[1760212948561,0.001,3770.9,3770.7,2.65201213]
[1760212948742,0.001,3770.9,3770.6,2.65204147]
[1760212948947,0.001,3770.9,3770.4,2.65222522]
[1760212949366,0.001,3770.9,3769.9,2.65252008]
[1760212949571,0.6346,3770.9,3770.2,1.92]
[1760212949776,0.6346,3770.9,3769.1,0.4385]
[1760212949777,0.9743,3770.9,3769.1,0.4385]
[1760212950086,3.28596469,3770.3,3769.1,0.4385]
[1760212950248,3.28604695,3770.2,3769.2,2.65308288]
[1760212950448,23.0870377,3770.9,3769.3,2.65300335]
[1760212950449,0.6336,3770.0,3769.3,2.65300335]
[1760212950768,0.6336,3770.0,3769.2,2.22915829]
[1760212950769,0.6336,3770.1,3769.5,1.92]
[1760212950945,0.6336,3770.1,3769.5,2.65287002]
[1760212951140,0.6336,3770.2,3769.5,2.65285614]
[1760212951461,3.28599118,3770.2,3769.4,2.65292265]
[1760212951776,0.132,3769.8,3769.4,2.65292265]
[1760212951980,0.132,3769.8,3768.7,2.653414]
[1760212951981,0.6336,3769.7,3769.0,2.65319979]
[1760212952185,0.6336,3769.7,3769.1,1.92]
[1760212952381,0.6336,3769.9,3768.9,4.57328379]
[1760212952584,0.6336,3769.9,3769.1,2.65315327]
[1760212952875,0.6336,3769.7,3769.1,2.65315327]
[1760212953076,2.65285685,3769.6,3768.8,2.65336446]
[1760212953279,0.6336,3769.6,3768.7,4.5734077]
[1760212953445,0.6336,3769.6,3768.7,2.6534077]
[1760212953642,2.65291137,3769.5,3768.3,0.2163]
[1760212953979,0.6336,3769.2,3767.5,0.4385]
[1760212954178,20.09445085,3769.5,3767.5,0.4385]
[1760212954179,0.6336,3768.9,3767.5,0.4385]
[1760212954358,2.99126721,3769.6,3767.7,1.92]
[1760212954359,0.6336,3769.6,3767.7,1.92]
[1760212954544,0.6336,3769.6,3767.8,0.96896585]
[1760212954748,2.2397,3770.1,3767.8,0.96896585]
[1760212954749,0.3197,3770.1,3769.1,2.65309841]
[1760212954942,2.97215932,3770.1,3768.6,0.6559]
[1760212955176,0.3197,3770.6,3769.2,2.6530247]
[1760212955381,0.3197,3770.6,3768.6,0.6559]
[1760212955382,0.6336,3770.0,3769.3,2.65297885]
[1760212955676,0.6336,3769.9,3769.1,2.65309123]
[1760212955863,0.6336,3769.9,3769.3,2.65300415]
[1760212956071,2.65272242,3769.8,3768.9,2.65323232]
[1760212956372,0.6336,3769.1,3768.5,1.92]
[1760212956556,0.6336,3769.1,3767.8,0.50392517]
[1760212956882,0.6336,3768.9,3768.3,2.65365708]
[1760212957085,0.6336,3768.9,3767.7,1.92]
[1760212957086,0.2256,3769.9,3768.2,0.4385]
[1760212957381,0.6336,3769.3,3768.4,2.65359054]
[1760212957677,3.28661775,3769.3,3768.5,2.65354864]
[1760212957881,0.6336,3768.9,3767.7,0.4385]
[1760212958173,2.65322923,3769.0,3767.7,0.50127096]
[1760212958174,0.6336,3769.0,3767.7,0.50127096]
[1760212958378,3.28684843,3769.0,3768.3,1.92]
[1760212958781,0.6336,3769.1,3768.3,2.65371373]
[1760212959014,2.65273855,3769.7,3768.4,0.6559]
[1760212959305,0.6336,3769.8,3768.4,0.92127137]
[1760212959505,0.6336,3769.8,3769.1,2.65309266]
[1760212959676,2.65246615,3770.1,3769.3,2.65298672]
[1760212959876,0.3197,3770.5,3769.2,2.65306765]
[1760212960105,0.6336,3769.7,3769.0,2.65322366]
[1760212960309,0.6336,3769.7,3768.9,2.65328206]
[1760212960610,0.6336,3770.5,3768.8,0.4535]
[1760212960774,0.6336,3769.9,3768.9,2.65329406]
[1760212961103,0.9543,3770.5,3768.8,3.41751701]
[1760212961104,0.3207,3770.5,3768.8,3.41751701]
[1760212961302,0.6336,3770.0,3768.8,0.76420757]
[1760212961626,0.3207,3770.5,3769.6,2.65278772]
[1760212961901,0.132,3769.9,3769.7,2.65271253]
[1760212962106,0.132,3769.9,3769.6,2.6527888]
[1760212962473,0.6336,3769.8,3769.3,0.132]
[1760212962740,0.132,3769.6,3769.1,1.92]
[1760212962888,0.132,3769.6,3769.1,4.5731432]
[1760212963072,0.9474,3769.5,3768.9,0.132]
[1760212963409,0.9474,3769.5,3768.2,0.132]
[1760212963410,0.132,3768.9,3768.2,0.132]
[1760212963609,0.132,3768.5,3767.9,2.65398238]
[1760212963912,0.132,3768.5,3768.1,2.65385738]
[1760212964115,0.132,3768.5,3768.0,4.57391455]
[1760212964415,0.132,3768.5,3768.1,2.65385659]
[1760212964719,0.132,3768.1,3767.6,2.65620655]
[1760212965114,0.132,3768.1,3767.7,4.57413407]
[1760212965475,0.6336,3768.8,3767.8,0.48004068]
[1760212965675,0.132,3768.1,3767.9,2.65398096]
[1760212965901,0.132,3768.1,3767.9,2.65395025]
[1760212966102,2.65328278,3769.0,3768.0,0.48003927]
[1760212966103,0.6336,3768.9,3768.0,0.48003927]
[1760212966306,0.132,3768.4,3768.1,2.65385738]
[1760212966525,0.3138,3769.7,3768.2,0.4535]
[1760212966832,0.132,3768.6,3768.3,0.02653716]
[1760212967016,0.132,3768.3,3767.7,0.132]
[1760212967220,0.6336,3768.4,3767.6,0.002]
[1760212967433,0.132,3768.0,3767.6,0.002]
[1760212967612,0.6336,3768.2,3767.6,0.002]
[1760212967935,3.28773912,3767.7,3767.6,0.002]
[1760212968307,3.59933912,3767.7,3767.6,0.002]
[1760212968499,3.28773912,3767.7,3767.6,0.002]
[1760212968701,3.45903912,3767.7,3767.6,0.002]
[1760212968932,5.37903912,3767.7,3767.6,0.002]
[1760212970907,5.20802093,3767.3,3766.8,0.002]
[1760212971134,23.38275365,3766.9,3766.8,0.002]
[1760212971737,23.55465365,3766.9,3766.8,0.002]
[1760212971936,3.28865522,3766.4,3764.2,0.4535]
[1760212972138,5.20865522,3766.4,3764.2,0.4535]
[1760212972437,2.5536,3766.3,3764.1,0.002]
[1760212972639,0.6336,3765.0,3764.1,0.002]
[1760212972939,0.6336,3764.8,3764.1,0.002]
[1760212973103,0.6336,3764.6,3764.1,0.002]
[1760212973507,3.29013127,3764.4,3764.1,0.002]
[1760212974055,3.29020698,3764.2,3764.1,0.002]
[1760212974421,3.46270698,3764.2,3764.1,0.002]
[1760212977155,5.38270698,3764.2,3764.1,0.002]
[1760212980469,0.8061,3764.2,3764.1,0.002]
[1760212980767,2.82910698,3764.2,3764.1,0.002]
[1760212980971,3.46270698,3764.2,3764.1,0.002]
[1760212981642,3.46270698,3764.2,3763.7,0.002]
[1760212981643,3.29048931,3763.8,3763.7,0.002]
[1760212981974,5.21048931,3763.8,3763.7,0.002]
[1760212982184,0.6336,3762.2,3760.8,0.4407]
[1760212982342,0.6336,3763.6,3760.8,0.4407]
[1760212982343,0.6336,3762.9,3761.1,2.6587748]
[1760212982677,0.6336,3762.7,3761.2,0.73582367]
[1760212982887,1.92,3763.1,3761.5,2.65850339]
[1760212982888,0.6336,3762.3,3761.5,2.65850339]
[1760212983043,0.6336,3762.3,3760.9,1.92]
[1760212983238,2.65816055,3762.0,3760.5,0.4407]
[1760212983438,2.65847023,3761.6,3760.5,0.4407]
[1760212983750,0.6336,3761.6,3760.0,0.4407]
[1760212983957,0.6336,3761.6,3760.5,2.65919421]
[1760212984274,0.4023,3761.7,3760.1,0.223]
[1760212984462,0.169,3762.7,3760.6,1.92]
[1760212984670,0.6336,3762.6,3761.3,2.65863554]
[1760212984868,2.6578073,3762.5,3761.4,2.685164]
[1760212985182,2.6578073,3762.5,3761.6,2.65842006]
[1760212985341,0.6336,3762.3,3760.8,2.6589494]
[1760212985541,0.6336,3762.1,3760.7,2.65906329]
[1760212985743,0.6336,3761.8,3759.9,0.4407]
[1760212985943,2.65872593,3761.2,3759.9,0.4407]
[1760212986181,0.6336,3760.9,3760.1,2.6594475]
[1760212986480,0.8026,3761.3,3759.9,0.4407]
[1760212986681,0.8026,3761.3,3759.5,0.002]
[1760212986843,0.6336,3760.9,3759.5,0.002]
[1760212987047,0.6336,3760.9,3760.0,2.65956406]
[1760212987048,0.6336,3760.8,3760.0,2.65956406]
[1760212987542,0.6336,3761.2,3760.2,2.659433]
[1760212987742,3.29234037,3761.2,3760.3,2.65936113]
[1760212987944,3.29234037,3761.2,3760.0,0.53213151]
[1760212987945,0.6336,3761.2,3760.0,0.53213151]
[1760212988252,0.6336,3761.7,3760.5,2.65915254]
[1760212988582,0.6336,3760.9,3760.3,2.65935557]
[1760212988754,2.65859235,3761.4,3759.8,0.002]
[1760212988755,0.169,3761.4,3759.9,0.4407]
[1760212988959,3.29240107,3761.1,3760.3,2.65932309]
[1760212989169,0.6336,3761.1,3760.0,1.92]
[1760212989382,0.6336,3760.7,3759.8,0.002]
[1760212989699,3.29268414,3760.7,3759.8,0.002]
[1760212989896,0.6336,3760.1,3759.8,0.002]
[1760212990057,0.8629,3759.9,3759.8,0.002]
[1760212990381,1.92,3760.4,3759.8,0.002]
[1760212990382,20.74815492,3760.6,3759.8,0.002]
[1760212990703,0.6336,3760.5,3759.8,0.002]
[1760212990866,0.6336,3760.5,3759.9,2.6596452]
[1760212991066,0.6336,3760.7,3759.8,0.002]
[1760212991268,2.65902442,3760.8,3759.8,0.002]
[1760212991269,0.1635,3760.4,3759.8,0.002]
[1760212991461,3.2932452,3759.9,3759.8,0.002]
[1760212991857,3.4567452,3759.9,3759.8,0.002]
[1760212992090,3.29345743,3759.6,3759.5,0.002]
[1760212992259,24.04161235,3759.6,3759.5,0.002]
[1760212992454,24.20511235,3759.6,3759.5,0.002]
[1760212992983,3.29374045,3759.2,3757.4,3.10211171]
[1760212993280,2.66004326,3759.4,3756.7,0.4427]
[1760212993281,0.6336,3758.1,3756.7,0.4427]
[1760212993481,2.66091813,3758.2,3756.7,0.002]
[1760212993482,2.66120676,3757.7,3756.7,0.002]
[1760212993698,0.6336,3757.7,3756.7,0.002]
[1760212993990,0.6336,3757.5,3756.7,0.002]
[1760212994494,3.29515647,3757.2,3756.7,0.002]
[1760212994795,24.04331139,3757.2,3756.7,0.002]
[1760212995102,26.12741139,3757.2,3756.7,0.002]
[1760212995590,3.29543986,3756.8,3756.7,0.002]
[1760212995891,3.29543986,3756.8,3756.3,0.002]
[1760212995892,3.29742144,3756.4,3756.3,0.002]
[1760212996058,25.96557636,3756.4,3756.3,0.002]
[1760212996256,26.12797822,3756.4,3756.3,0.002]
[1760212996720,0.7977,3756.4,3756.3,0.002]
[1760212997089,20.74815492,3757.0,3756.3,0.002]
[1760212997090,0.6336,3757.0,3756.3,0.002]
[1760212997506,23.41027822,3756.4,3756.3,0.002]
[1760212997706,25.96387822,3756.4,3756.3,0.002]
[1760212997880,26.12797822,3756.4,3756.3,0.002]
[1760212999225,0.6336,3755.3,3755.1,0.002]
[1760212999514,0.8685,3755.2,3755.1,0.002]
[1760212999813,0.797,3755.2,3755.1,0.002]
[1760213000193,3.459974,3755.2,3755.1,0.002]
[1760213000392,0.797,3755.2,3755.1,0.002]
[1760213000805,0.6336,3755.2,3755.1,0.002]
[1760213001211,0.7978,3755.2,3755.1,0.002]
[1760213001380,3.460774,3755.2,3755.1,0.002]
[1760213001582,5.380774,3755.2,3755.1,0.002]
[1760213001994,0.6336,3755.2,3755.1,0.002]
[1760213002184,0.7978,3755.2,3755.1,0.002]
[1760213002384,0.6336,3755.2,3755.1,0.002]
[1760213002719,20.74815492,3756.5,3755.1,0.002]
[1760213002925,0.1328,3755.8,3755.1,0.1348]
[1760213003082,0.1328,3755.6,3755.2,2.68960374]
[1760213003283,0.1328,3755.6,3755.2,2.662974]
[1760213003619,0.1328,3755.6,3755.5,2.66276128]
[1760213003921,2.66185448,3756.8,3755.1,0.46152422]
[1760213003922,0.1634,3756.9,3755.4,0.02662832]
[1760213004145,0.1328,3755.4,3755.1,0.002]
[1760213004359,0.1328,3755.8,3755.1,0.1348]
[1760213004645,0.1328,3755.8,3755.7,2.66261948]
[1760213004829,0.1634,3756.8,3755.4,0.1328]
[1760213005150,0.1328,3756.0,3755.4,0.1328]
[1760213005451,0.1634,3755.9,3755.1,0.002]
[1760213005605,0.1328,3755.3,3755.1,0.002]
[1760213005919,20.74815492,3756.3,3755.1,0.002]
[1760213005920,0.6336,3756.8,3755.1,0.4427]
[1760213006236,20.91155492,3757.1,3755.2,0.02662974]
[1760213006442,0.1634,3757.7,3755.4,4.58283218]
[1760213006646,0.1634,3757.7,3755.5,2.86571619]
[1760213006945,0.1634,3757.7,3755.7,1.92]
[1760213007143,0.3913,3758.3,3756.2,1.92]
[1760213007444,2.66069421,3758.5,3756.3,0.6637]
[1760213007651,2.6605696,3758.6,3757.5,2.6613341]
[1760213007838,0.3913,3758.8,3757.6,0.02661273]
[1760213008010,0.3913,3758.8,3757.9,2.66103525]
[1760213008215,0.3913,3758.8,3758.0,2.6609604]
[1760213008413,0.1574,3759.4,3758.2,2.66077967]
[1760213008629,0.6336,3758.9,3758.1,2.66090948]
[1760213008925,2.65979293,3759.7,3758.1,2.66090948]
[1760213008926,0.1574,3759.9,3758.1,0.5762679]
[1760213009248,0.1574,3759.9,3758.0,2.88398951]
[1760213009249,0.2291,3759.8,3758.2,0.4407]
[1760213009458,0.2291,3759.8,3756.8,0.6336]
[1760213009459,20.74815492,3758.9,3756.8,0.4297]
[1760213009619,0.6336,3758.4,3756.8,2.3497]
[1760213009948,2.81862353,3758.8,3756.9,0.95747808]
[1760213009949,0.6336,3758.2,3756.9,0.95747808]
[1760213010249,0.6336,3758.2,3756.4,0.4297]
[1760213010548,0.6336,3759.1,3757.2,2.66150928]
[1760213010750,0.6336,3758.2,3756.9,0.4297]
[1760213010912,0.6336,3757.9,3756.9,2.6617248]
[1760213011251,3.45266621,3758.2,3755.5,0.50501619]
[1760213011252,21.38175492,3757.7,3755.5,0.50501619]
[1760213011436,0.6336,3757.4,3755.6,0.4297]
[1760213011640,20.74815492,3757.1,3755.6,0.4297]
[1760213011815,2.66212465,3756.4,3755.2,0.4297]
[1760213012021,20.74815492,3757.1,3755.2,0.4297]
[1760213012022,0.6336,3756.8,3755.3,2.66287075]
[1760213012329,0.6336,3756.3,3754.8,2.66523694]
[1760213012512,3.29581932,3756.3,3754.8,0.002]
[1760213012713,20.74815492,3756.5,3754.8,0.002]
[1760213012714,2.66280985,3755.5,3754.8,0.002]
[1760213012918,0.6336,3755.3,3754.8,0.002]
[1760213013141,3.296574,3755.2,3754.8,0.002]
[1760213013343,3.494774,3755.2,3754.8,0.002]
[1760213013742,2.662974,3755.2,3754.8,0.002]
[1760213014150,20.74815492,3756.5,3755.1,2.66499605]
[1760213014351,20.74815492,3757.1,3755.2,0.26649961]
[1760213014658,2.66166767,3757.1,3755.2,0.4297]
[1760213014956,0.001,3756.8,3756.1,2.66227213]
[1760213015156,0.001,3756.8,3755.3,2.66290309]
[1760213015357,0.001,3756.8,3756.4,2.66205988]
[1760213015563,0.001,3756.8,3755.4,0.45632832]
[1760213015564,0.001,3756.8,3756.7,2.66191071]
[1760213015726,0.001,3756.8,3756.7,4.84810178]
[1760213015922,0.001,3756.8,3756.7,5.41060178]
[1760213016122,0.001,3756.8,3756.7,4.98090178]
[1760213016337,0.001,3756.8,3756.7,5.41060178]
[1760213016541,0.001,3756.8,3756.7,5.27780178]
[1760213016940,0.001,3756.8,3756.7,1.92]
[1760213017146,0.001,3756.8,3756.7,5.01161071]
[1760213018665,0.001,3756.8,3756.7,5.64521071]
[1760213019440,0.112,3760.2,3756.8,2.5536]
[1760213019641,0.112,3760.2,3757.9,2.66106069]
[1760213019872,0.112,3760.2,3759.1,2.66020691]
[1760213019873,0.6336,3759.9,3759.1,2.66020691]
[1760213020072,2.66013388,3759.3,3758.2,2.66084778]
[1760213020246,0.6336,3759.5,3757.5,1.92]
[1760213020439,0.6336,3759.2,3758.1,2.66091462]
[1760213020642,0.6336,3759.2,3757.6,2.66127315]
[1760213020643,0.6336,3759.2,3758.4,2.66069997]
[1760213020842,0.113,3760.2,3759.1,2.66016551]
[1760213021078,17.52178208,3760.9,3758.9,0.4297]
[1760213021279,2.65949826,3760.2,3759.2,2.66012527]
[1760213021451,2.65951222,3760.1,3759.3,2.6600579]
[1760213021655,0.114,3760.8,3759.4,2.65998003]
[1760213021864,2.034,3760.8,3759.2,2.66008869]
[1760213022053,1.92,3760.3,3759.3,0.02660069]
[1760213022255,0.114,3760.8,3758.9,0.02660352]
[1760213022460,2.65977481,3759.8,3758.2,2.3497]
[1760213022673,0.6336,3759.8,3758.7,2.6604933]
[1760213022840,0.6336,3759.8,3759.1,2.66015401]
[1760213023058,0.6336,3760.4,3758.9,2.66034586]
[1760213023259,2.65951597,3760.1,3759.2,2.66013714]
[1760213023581,0.6336,3760.4,3759.5,2.65987271]
[1760213023750,2.5536,3760.2,3759.4,2.65999693]
[1760213023950,2.65900829,3760.9,3759.9,2.65958193]
[1760213024181,0.115,3760.8,3758.3,0.9532705]
[1760213024370,0.115,3760.8,3757.4,0.6336]
[1760213024371,1.92,3760.5,3759.6,2.65980533]
[1760213024568,2.035,3760.8,3758.9,3.09004214]
[1760213024569,0.6336,3760.7,3758.9,3.09004214]
[1760213024767,2.65929528,3760.4,3759.5,2.65986247]
[1760213024947,2.5536,3760.7,3758.6,1.92]
[1760213025149,2.65964901,3759.9,3758.5,0.4297]
[1760213025568,2.66006305,3759.4,3757.8,0.4297]
[1760213025782,2.66006305,3759.4,3758.6,2.66056006]
[1760213025985,2.66008584,3759.3,3758.1,2.66087803]
[1760213026146,3.29357173,3759.5,3758.5,2.6606182]
[1760213026350,0.212,3759.8,3758.6,2.66055155]
[1760213026586,0.99999999,3763.1,3758.7,0.02660494]
[1760213026587,0.1328,3759.1,3758.7,0.02660494]
[1760213026891,1.92,3760.8,3759.7,2.65978668]
[1760213026892,0.1328,3759.8,3759.7,2.65978668]
[1760213027070,2.65867722,3761.3,3760.4,2.65923291]
[1760213027277,0.3491,3761.7,3760.5,2.65915168]
[1760213027462,0.1328,3760.8,3760.1,0.4297]
[1760213027665,0.118,3762.1,3761.0,2.65879852]
[1760213027859,0.1352,3762.6,3760.5,0.1328]
[1760213027860,2.657887,3762.4,3760.5,0.4562922]
[1760213028061,0.1328,3761.5,3760.7,2.79186309]
[1760213028287,2.6583064,3761.8,3760.9,2.6589372]
[1760213028504,2.6583064,3761.8,3760.7,0.1328]
[1760213028505,0.1328,3761.2,3760.7,0.1328]
[1760213028797,0.1328,3760.8,3759.5,0.2353]
[1760213028975,0.1328,3760.1,3759.6,0.1328]
[1760213029645,0.1328,3760.1,3759.5,2.65986347]
[1760213029852,0.1328,3760.1,3759.3,0.02660069]
[1760213030085,0.1328,3760.1,3759.7,2.65976674]
[1760213030270,0.1328,3760.3,3759.7,0.1328]
[1760213030445,0.6336,3760.6,3759.1,2.3746]
[1760213030652,0.1328,3760.1,3759.4,0.1328]
[1760213030859,0.1328,3760.1,3760.0,2.65957446]
[1760213031087,2.65882149,3761.1,3760.0,2.65957446]
[1760213031088,0.1302,3761.6,3760.0,0.4546]
[1760213031294,2.77599781,3762.6,3759.8,0.1328]
[1760213031295,2.78878456,3761.4,3759.8,0.1328]
[1760213031462,0.1182,3762.6,3759.9,0.48119645]
[1760213031651,0.1328,3761.0,3760.9,2.65892392]
[1760213031853,0.1311,3762.5,3760.9,0.4546]
[1760213032162,0.1328,3761.1,3760.5,0.1328]
[1760213032361,0.1328,3761.1,3761.0,2.65886732]
[1760213032766,0.1328,3761.1,3760.5,0.5874]
[1760213032976,0.001,3761.0,3760.5,0.1328]
[1760213033179,0.1312,3761.0,3760.3,2.65935994]
[1760213033360,0.001,3761.0,3760.2,2.65942193]
[1760213033561,0.001,3761.0,3760.0,2.65957446]
[1760213033792,0.6346,3761.0,3760.0,2.65957446]
[1760213033952,2.65987558,3761.0,3760.1,2.65943573]
[1760213034156,0.001,3761.0,3760.2,0.02659433]
[1760213034359,0.001,3761.0,3760.7,2.65901954]
[1760213034869,2.65899981,3760.9,3760.1,2.6594951]
[1760213035068,0.001,3761.0,3758.9,2.66031711]
[1760213035069,0.001,3761.0,3760.3,2.65929743]
[1760213035489,2.65987199,3761.0,3760.2,2.65942706]
[1760213035689,2.65987199,3761.0,3759.5,0.4546]
[1760213035690,0.001,3761.0,3759.5,0.4546]
[1760213035988,0.001,3761.0,3759.6,0.48119857]
[1760213036191,0.001,3761.0,3759.7,0.24011986]
[1760213036403,0.001,3761.0,3760.9,2.65893802]
[1760213037199,0.001,3761.0,3760.9,3.11353802]
[1760213037785,0.001,3761.0,3760.3,0.4546]
[1760213037987,0.001,3761.0,3760.9,2.65893802]
[1760213038480,0.001,3761.0,3760.1,0.4546]
[1760213038798,0.001,3761.0,3760.9,3.11353802]
[1760213038966,0.001,3761.0,3760.9,2.65893802]
[1760213039166,0.001,3761.0,3760.7,2.65901979]
[1760213039367,0.001,3761.0,3760.8,2.65900041]
[1760213039787,0.001,3761.0,3757.5,2.36444577]
[1760213040097,2.65988077,3761.0,3760.2,2.65940297]
[1760213040297,0.001,3761.0,3759.8,2.3793]
[1760213040496,0.001,3761.0,3756.6,3.3154699]
[1760213040497,0.001,3761.0,3760.0,2.65957446]
[1760213040703,0.001,3761.0,3760.6,2.65909667]
[1760213041174,0.001,3761.0,3758.6,0.2668]
[1760213041175,0.001,3761.0,3760.9,2.65893802]
[1760213042300,2.65899395,3760.9,3760.1,2.65943783]
[1760213042460,0.001,3761.0,3758.3,2.66071657]
[1760213042664,0.001,3761.0,3757.9,0.33160023]
[1760213042665,0.6336,3760.6,3759.2,0.4593]
[1760213043008,0.6336,3760.4,3757.9,0.33160023]
[1760213043162,0.6336,3760.6,3758.6,0.6843]
[1760213043359,0.1328,3759.9,3759.3,0.1328]
[1760213043585,0.1328,3760.5,3760.2,2.65937286]
[1760213043983,0.6346,3761.0,3758.7,0.4593]
[1760213043984,0.1201,3760.4,3758.7,0.4593]
[1760213044184,0.1328,3759.6,3759.2,2.66007083]
[1760213044712,0.6336,3759.5,3758.1,0.4593]
[1760213044868,2.66035276,3758.9,3758.4,0.1328]
[1760213045064,0.6336,3758.9,3758.0,2.66098981]
[1760213045280,2.66022226,3759.1,3758.1,0.02660919]
[1760213045477,2.65976916,3759.8,3758.9,2.66029951]
[1760213045478,0.6336,3759.8,3758.9,2.66029951]
[1760213045702,0.6336,3759.8,3758.4,2.66066013]
[1760213045703,2.65996375,3759.5,3758.4,2.66066013]
[1760213045871,2.65996375,3759.5,3758.2,0.4593]
[1760213046071,2.65998356,3759.5,3758.5,2.66063112]
[1760213046296,1.92,3760.0,3758.5,2.66063112]
[1760213046297,0.1003,3760.5,3758.6,0.48590565]
[1760213046500,1.92,3760.3,3759.5,2.65989962]
[1760213046677,2.65903863,3760.8,3759.9,2.65960514]
[1760213046996,0.1013,3761.0,3759.0,0.4593]
[1760213047160,2.65921856,3760.6,3759.7,2.65975324]
[1760213047364,0.1003,3760.5,3759.3,2.66004312]
[1760213047596,0.6336,3759.8,3758.6,1.92]
[1760213047810,3.29331669,3759.8,3758.8,2.66042353]